bitfinex-derivatives/quotes_ETHF0:USTF0_20250606
["timestamp","ask_amount","ask_price","bid_price","bid_amount"]
[1749176468747,3.2078,2410.7,2410.3,0.7005]
[1749176468943,3.2078,2410.7,2410.6,0.82934]
[1749176469147,0.00621697,2410.9,2410.6,5.162]
[1749176469344,0.00621697,2410.9,2410.8,0.82927]
[1749176470452,0.00621697,2410.9,2410.8,2.19047]
[1749176470849,3.2078,2411.4,2411.2,0.82911]
[1749176471148,3.2078,2411.4,2411.3,5.9911]
[1749176472448,3.2078,2411.4,2411.3,7.9983]
[1749176473050,3.2078,2411.4,2411.3,5.8485]
[1749176473250,3.2078,2411.4,2411.3,6.6776]
[1749176477156,0.00621697,2411.6,2411.5,0.82903]
[1749176477358,3.21401697,2411.6,2411.5,5.161]
[1749176477655,4.04300697,2411.6,2411.5,5.161]
[1749176478056,4.71670697,2411.6,2411.5,5.161]
[1749176478258,0.8291,2411.3,2411.2,0.6787]
[1749176478448,4.0369,2411.3,2411.2,0.6787]
[1749176478752,4.0369,2411.3,2411.1,5.16721697]
[1749176478753,0.82913,2411.2,2411.1,5.16721697]
[1749176478960,2.19263,2411.2,2411.1,5.16721697]
[1749176479250,7.19263,2411.2,2411.1,5.16721697]
[1749176479455,2.19263,2411.2,2411.1,5.16721697]
[1749176482261,1.3635,2411.2,2411.1,5.16721697]
[1749176482556,2.19263,2411.2,2411.1,5.16721697]
[1749176482764,1.3635,2411.2,2411.1,5.99638697]
[1749176482955,3.2078,2411.3,2411.1,5.16721697]
[1749176483158,4.03691,2411.3,2411.1,5.99636697]
[1749176483653,3.2078,2411.3,2411.2,0.82913]
[1749176484055,3.2078,2411.3,2411.1,5.16721697]
[1749176484257,3.2078,2411.3,2411.1,0.00621697]
[1749176484258,2.15903,2411.2,2411.1,0.00621697]
[1749176485558,1.3299,2411.2,2411.1,0.00621697]
[1749176485760,2.15903,2411.2,2411.1,0.00621697]
[1749176486160,1.3299,2411.2,2411.1,0.83538697]
[1749176486357,4.03691,2411.3,2411.2,0.82913]
[1749176486358,3.2078,2411.3,2411.2,0.82913]
[1749176487366,0.67991697,2411.6,2411.5,0.82903]
[1749176487367,3.21401697,2411.6,2411.5,0.82903]
[1749176487566,3.21401697,2411.6,2411.5,5.99003]
[1749176487754,3.21401697,2411.6,2411.5,14.19783]
[1749176487755,0.00621697,2411.6,2411.5,14.19783]
[1749176488058,0.6739,2412.1,2411.5,13.3688]
[1749176488263,2.0175,2412.3,2411.5,8.3688]
[1749176488466,3.2078,2412.1,2411.8,0.82889]
[1749176488666,3.2078,2412.1,2411.9,5.161]
[1749176488667,4.03664,2412.1,2411.9,5.161]
[1749176488865,0.82888,2412.0,2411.5,3.2078]
[1749176489068,4.03664,2412.1,2411.8,0.82892]
[1749176489265,1.3467,2412.0,2411.8,0.82892]
[1749176489466,1.3467,2412.0,2411.7,0.82894]
[1749176489669,1.3467,2412.0,2411.6,5.161]
[1749176489861,1.3467,2412.0,2411.8,0.82891]
[1749176490064,3.8817,2412.1,2411.9,0.82889]
[1749176490367,0.82886,2412.0,2411.7,0.82895]
[1749176490562,1.3767,2412.0,2411.8,5.189]
[1749176490763,2.20556,2412.0,2411.8,5.189]
[1749176490962,0.82889,2411.9,2411.8,5.189]
[1749176491160,2.20559,2411.9,2411.8,5.189]
[1749176492167,1.3767,2411.9,2411.8,5.189]
[1749176492567,2.20559,2411.9,2411.8,5.189]
[1749176493464,1.3767,2411.9,2411.8,5.189]
[1749176493671,0.82889,2411.9,2411.8,5.189]
[1749176493864,2.11769,2411.9,2411.8,5.189]
[1749176495258,3.8817,2412.1,2411.8,5.189]
[1749176495472,0.82889,2411.9,2411.8,5.189]
[1749176495865,0.82888,2412.0,2411.8,5.189]
[1749176496064,0.82889,2411.9,2411.8,5.189]
[1749176496459,1.3636,2412.0,2411.3,2.6021]
[1749176496664,1.3636,2412.0,2411.3,5.188]
[1749176496665,4.03686,2411.4,2411.3,5.188]
[1749176496870,3.2078,2411.4,2411.3,5.188]
[1749176497071,3.2078,2411.4,2411.3,6.0171]
[1749176497270,4.03686,2411.4,2411.3,5.188]
[1749176497470,5.40046,2411.4,2411.3,5.188]
[1749176497871,0.82913,2411.2,2411.1,0.00621697]
[1749176498267,5.82913,2411.2,2411.1,0.00621697]
[1749176498462,7.15813,2411.2,2411.1,0.00621697]
[1749176499468,2.15813,2411.2,2411.1,0.00621697]
[1749176501166,7.15813,2411.2,2411.1,0.00621697]
[1749176502471,2.15813,2411.2,2411.1,0.00621697]
[1749176505572,0.8295,2410.2,2410.1,5.189]
[1749176505869,3.2078,2410.4,2410.1,5.189]
[1749176506177,4.03723,2410.4,2410.2,1.50758]
[1749176506378,4.03721,2410.4,2410.3,1.3786]
[1749176506984,3.2078,2410.4,2410.3,7.20804]
[1749176507274,0.00621697,2410.5,2410.4,0.82941]
[1749176507479,0.00621697,2410.5,2410.4,2.20801]
[1749176507671,0.82944,2410.3,2410.2,5.8671]
[1749176507877,4.03724,2410.3,2410.2,5.8671]
[1749176509177,0.82948,2410.2,2410.1,0.00621697]
[1749176509378,0.82948,2410.2,2410.1,5.19521697]
[1749176512682,4.03726,2410.3,2410.1,5.19521697]
[1749176512875,4.03726,2410.3,2410.1,6.46461697]
[1749176513071,3.2078,2410.3,2410.1,6.46461697]
[1749176513377,0.83560697,2410.5,2410.2,0.82946]
[1749176513783,0.83562697,2410.5,2410.2,0.82946]
[1749176513981,0.00621697,2410.5,2410.1,9.67241697]
[1749176514175,3.2078,2410.9,2410.8,0.82927]
[1749176514373,7.26227,2411.9,2410.8,10.19]
[1749176514374,3.2078,2411.7,2410.8,10.19]
[1749176514575,0.82904,2411.5,2411.1,3.2078]
[1749176515080,0.82904,2411.5,2411.2,7.37942]
[1749176515081,0.83525697,2411.5,2411.2,7.37942]
[1749176515284,0.82906,2411.4,2411.3,1.3603]
[1749176516080,0.00621697,2411.5,2411.3,5.19]
[1749176516486,0.00621697,2411.5,2411.4,2.0576]
[1749176516877,0.00621697,2411.5,2411.4,2.88666]
[1749176518273,0.00621697,2411.5,2411.4,5.8873]
[1749176519087,0.83524697,2411.5,2411.4,0.6973]
[1749176519386,0.83524697,2411.5,2411.4,5.8863]
[1749176519781,0.83524697,2411.5,2411.4,5.189]
[1749176522286,0.00621697,2411.5,2411.4,5.189]
[1749176522486,0.83524697,2411.5,2411.4,5.189]
[1749176522688,0.83524697,2411.5,2410.9,2.7162]
[1749176522689,0.82906,2411.4,2411.3,5.267]
[1749176522890,0.82913,2411.2,2411.1,5.267]
[1749176523489,0.82912,2411.3,2411.1,5.267]
[1749176523791,4.72879,2411.4,2411.1,5.267]
[1749176523992,3.2078,2411.4,2411.2,0.82913]
[1749176524190,3.2078,2411.4,2411.2,2.18363]
[1749176524595,3.2078,2411.4,2411.1,5.267]
[1749176524793,4.03689,2411.4,2411.1,6.09616]
[1749176524987,0.8291,2411.3,2411.1,6.09615]
[1749176525490,4.03688,2411.4,2411.1,6.09615]
[1749176525692,3.2078,2411.4,2411.2,0.82911]
[1749176525994,4.03686,2411.4,2411.2,0.82911]
[1749176526397,3.2078,2411.4,2411.3,0.8291]
[1749176526589,0.00621697,2411.5,2411.4,0.82906]
[1749176527997,0.00621697,2411.5,2411.3,0.82908]
[1749176528694,0.00621697,2411.5,2411.4,0.82906]
[1749176528891,0.00621697,2411.5,2411.3,0.82908]
[1749176529297,0.82913,2411.2,2411.1,5.267]
[1749176529491,0.82912,2411.3,2411.1,6.09616]
[1749176529686,4.03688,2411.4,2411.1,5.267]
[1749176529888,0.82908,2411.4,2411.2,0.82912]
[1749176531103,0.82908,2411.4,2411.1,5.267]
[1749176531399,0.82908,2411.4,2411.2,0.82913]
[1749176531999,0.82908,2411.4,2410.9,1.3284]
[1749176532000,0.82919,2411.1,2410.9,1.3284]
[1749176532193,2.8208,2411.3,2411.2,5.267]
[1749176534697,3.2078,2411.4,2411.2,5.267]
[1749176534902,3.2078,2411.4,2411.2,6.09612]
[1749176534903,0.82908,2411.4,2411.2,6.09612]
[1749176535400,0.00621697,2411.5,2411.4,0.82906]
[1749176536300,0.00621697,2411.5,2411.4,2.10206]
[1749176536701,0.00621697,2411.5,2411.4,0.82906]
[1749176538102,0.83524697,2411.5,2411.3,7.45927]
[1749176538699,0.82906,2411.4,2411.3,6.6302]
[1749176539301,0.82906,2411.4,2411.3,5.266]
[1749176539510,2.19836,2411.4,2411.3,5.266]
[1749176540101,0.82924,2410.9,2410.8,3.2078]
[1749176541503,0.82927,2410.8,2410.7,5.266]
[1749176543206,4.03707,2410.8,2410.7,5.266]
[1749176543804,4.03707,2410.8,2410.1,0.83572697]
[1749176543805,0.82946,2410.3,2410.1,0.83572697]
[1749176544000,0.82936,2410.6,2410.4,0.8294]
[1749176544200,0.82934,2410.6,2410.3,0.82942]
[1749176544706,0.82934,2410.6,2410.2,6.5805]
[1749176544707,0.82938,2410.5,2410.2,5.267]
[1749176544910,0.82938,2410.5,2410.3,0.82943]
[1749176545308,2.14956,2410.6,2410.2,5.267]
[1749176545603,2.14956,2410.6,2410.3,0.82943]
[1749176545805,2.14956,2410.6,2410.1,0.00621697]
[1749176545806,1.3202,2410.6,2410.1,0.00621697]
[1749176546110,1.3202,2410.6,2410.2,5.267]
[1749176546111,0.82942,2410.4,2410.2,5.267]
[1749176546603,0.6857,2410.7,2410.2,5.267]
[1749176546802,0.82939,2410.5,2410.2,6.09645]
[1749176547205,0.82939,2410.5,2410.3,0.82944]
[1749176548012,0.82936,2410.6,2410.3,0.82944]
[1749176548210,2.0059,2410.7,2410.3,0.82943]
[1749176548211,0.82937,2410.5,2410.3,0.82943]
[1749176548511,0.82939,2410.5,2410.2,6.09646]
[1749176548805,0.82935,2410.6,2410.3,0.82944]
[1749176549112,4.03709,2410.8,2410.5,0.82935]
[1749176549411,4.03709,2410.8,2410.6,5.268]
[1749176549612,0.82931,2410.7,2410.6,6.6494]
[1749176549808,3.2078,2410.8,2410.2,4.03726]
[1749176550014,3.2078,2410.8,2410.3,6.09743]
[1749176550015,0.8294,2410.5,2410.3,6.09743]
[1749176550413,0.82936,2410.6,2410.3,6.09743]
[1749176551118,0.82936,2410.6,2410.4,0.8294]
[1749176551610,2.11682,2410.7,2410.3,5.268]
[1749176551811,0.82932,2410.7,2410.3,5.268]
[1749176552013,4.0371,2410.8,2410.3,6.5441]
[1749176552213,0.82931,2410.7,2410.5,0.82935]
[1749176552521,1.2875,2411.0,2410.3,6.5441]
[1749176552710,0.82939,2410.5,2410.3,6.09744]
[1749176553212,0.82939,2410.5,2410.3,5.268]
[1749176553616,0.82939,2410.5,2410.3,6.09743]
[1749176554115,3.2078,2410.5,2410.3,5.268]
[1749176554315,4.0372,2410.5,2410.3,5.268]
[1749176554918,0.82941,2410.4,2410.3,5.268]
[1749176555118,3.2078,2410.5,2410.1,0.00621697]
[1749176555313,3.2078,2410.5,2409.1,25.088]
[1749176555314,3.2078,2410.2,2409.0,3.2078]
[1749176555514,4.03752,2409.5,2409.0,3.2078]
[1749176555816,3.2078,2409.5,2409.0,8.4898]
[1749176556015,3.2078,2409.5,2409.3,0.82977]
[1749176556218,3.2078,2409.5,2409.2,0.8298]
[1749176556418,3.2078,2409.5,2409.3,0.82979]
[1749176556620,3.2078,2409.5,2409.3,5.282]
[1749176556812,3.2078,2409.5,2409.3,6.11177]
[1749176557209,3.2078,2409.5,2409.3,5.282]
[1749176557518,3.2078,2409.5,2409.4,6.59828896]
[1749176557719,3.2078,2409.5,2409.4,11.05153896]
[1749176558420,4.03752,2409.5,2409.4,11.05153896]
[1749176558612,3.2078,2409.5,2409.4,11.05153896]
[1749176559621,3.2078,2409.5,2409.4,11.88128896]
[1749176559816,0.00621697,2409.7,2409.6,0.82968]
[1749176560214,0.00621697,2409.7,2409.6,5.82968]
[1749176560416,0.00621697,2409.7,2409.6,9.03748]
[1749176560718,0.00621697,2409.7,2409.6,34.12948]
[1749176561217,3.2078,2410.3,2410.2,0.82948]
[1749176561419,3.2078,2410.3,2410.2,6.11248]
[1749176563010,3.2078,2410.3,2410.2,5.283]
[1749176563715,3.2078,2410.3,2410.2,6.11248]
[1749176567622,0.00621697,2410.5,2410.3,0.82942]
[1749176567920,0.00621697,2410.5,2410.4,0.82941]
[1749176568122,0.00621697,2410.5,2410.4,1.47281]
[1749176568321,2.19469,2411.1,2410.4,6.9372]
[1749176568523,2.19469,2411.1,2410.4,1.9372]
[1749176568825,3.2078,2411.2,2410.5,25.092]
[1749176569117,3.8792,2411.6,2411.1,0.82917]
[1749176569323,3.21401697,2411.6,2411.2,5.283]
[1749176569524,0.82906,2411.5,2411.2,2.14652]
[1749176569724,0.82906,2411.5,2411.3,5.282]
[1749176570021,4.04303697,2411.6,2411.3,6.11109]
[1749176571019,0.82905,2411.5,2411.3,5.282]
[1749176571323,3.21401697,2411.6,2411.3,5.282]
[1749176571623,4.04302697,2411.6,2411.3,6.11108]
[1749176572317,0.82903,2411.5,2411.3,5.282]
[1749176572520,0.82907,2411.4,2411.3,5.282]
[1749176572915,3.21401697,2411.6,2411.3,5.282]
[1749176573115,0.82906,2411.5,2411.3,5.282]
[1749176573311,0.82913,2411.2,2411.1,0.00621697]
[1749176573513,0.82913,2411.2,2411.1,5.28821697]
[1749176574322,2.10063,2411.2,2411.1,5.28821697]
[1749176575124,0.82929,2410.8,2410.5,25.092]
[1749176575426,0.82929,2410.8,2410.6,5.282]
[1749176576425,0.82929,2410.8,2410.5,0.83557697]
[1749176576625,0.82934,2410.6,2410.5,0.00621697]
[1749176577017,3.43034,2410.6,2410.5,0.00621697]
[1749176578018,8.43034,2410.6,2410.5,0.00621697]
[1749176578223,0.82948,2410.2,2410.1,5.282]
[1749176578526,4.03728,2410.2,2410.1,5.282]
[1749176581129,0.82955,2410.0,2409.9,0.00621697]
[1749176581325,0.82955,2410.0,2409.9,5.28821697]
[1749176582420,0.82955,2410.0,2409.9,0.00621697]
[1749176583930,1.49555,2410.0,2409.9,0.00621697]
[1749176585028,1.3378,2410.1,2409.9,0.00621697]
[1749176585228,3.21401697,2410.2,2409.9,0.00621697]
[1749176585525,0.82955,2410.0,2409.9,0.00621697]
[1749176585731,4.04351697,2410.2,2409.9,0.83579697]
[1749176586030,0.82953,2410.1,2409.9,0.83579697]
[1749176586327,0.82953,2410.1,2409.9,0.00621697]
[1749176586730,0.82952,2410.1,2409.9,0.83578697]
[1749176587427,4.04351697,2410.2,2409.9,0.83578697]
[1749176587630,0.82951,2410.1,2409.9,0.00621697]
[1749176587826,3.21401697,2410.2,2409.9,0.00621697]
[1749176588123,3.21401697,2410.2,2410.1,0.82951]
[1749176589930,3.21401697,2410.2,2410.0,1.52753]
[1749176590119,3.21401697,2410.2,2409.9,0.00621697]
[1749176590323,0.82951,2410.1,2409.9,0.00621697]
[1749176590525,0.82955,2410.0,2409.9,0.00621697]
[1749176590725,3.21401697,2410.2,2410.0,0.82953]
[1749176591132,0.82952,2410.1,2409.9,0.83577697]
[1749176591533,3.21401697,2410.2,2410.1,0.82951]
[1749176591728,0.82952,2410.1,2409.9,0.83578697]
[1749176592029,0.82955,2410.0,2409.9,5.35821697]
[1749176592236,3.55175,2410.0,2409.9,0.00621697]
[1749176592629,0.82972,2409.5,2409.4,3.2078]
[1749176592829,0.82975,2409.4,2409.3,5.352]
[1749176593031,6.04405,2409.4,2409.3,5.352]
[1749176593928,0.82982,2409.2,2409.1,30.443]
[1749176594429,3.2078,2409.7,2409.1,5.353]
[1749176594635,0.8297,2409.6,2409.4,0.82974]
[1749176594829,0.8297,2409.6,2409.3,0.82978]
[1749176595030,3.2078,2409.7,2409.4,0.82975]
[1749176595239,3.2078,2409.7,2409.5,5.353]
[1749176595430,1.3739,2409.9,2409.5,5.353]
[1749176595736,0.82963,2409.8,2409.6,0.82968]
[1749176595938,0.82963,2409.8,2409.5,5.353]
[1749176596142,3.2078,2409.8,2409.5,5.353]
[1749176596437,0.82968,2409.7,2409.5,5.353]
[1749176597029,0.82965,2409.7,2409.5,5.353]
[1749176597436,0.82968,2409.6,2409.5,5.353]
[1749176598138,0.82967,2409.7,2409.5,5.353]
[1749176598539,0.82968,2409.6,2409.5,5.353]
[1749176600236,3.2078,2410.1,2409.5,10.353]
[1749176600444,0.00621697,2410.2,2409.5,6.6412]
[1749176600635,0.00621697,2410.2,2409.8,0.82961]
[1749176600941,0.00621697,2410.2,2409.9,5.353]
[1749176601536,3.2078,2410.1,2409.5,1.2882]
[1749176601836,0.82964,2409.8,2409.6,5.353]
[1749176602246,0.82965,2409.7,2409.6,5.353]
[1749176602441,0.82964,2409.8,2409.6,5.353]
[1749176602743,0.82962,2409.8,2409.7,5.353]
[1749176608549,3.2078,2409.8,2409.4,0.6749]
[1749176608849,0.82972,2409.5,2409.4,0.6749]
[1749176609149,0.82972,2409.5,2409.4,6.85765]
[1749176609349,0.82969,2409.6,2409.4,6.85765]
[1749176609648,1.3975,2409.7,2409.4,6.0279]
[1749176609949,0.82972,2409.5,2409.4,5.353]
[1749176610150,0.8297,2409.6,2409.4,6.18274]
[1749176611252,2.1113,2409.6,2409.4,6.18274]
[1749176611449,1.2816,2409.6,2409.5,0.82972]
[1749176612844,2.1113,2409.6,2409.4,6.18273]
[1749176613050,1.2816,2409.6,2409.5,0.82972]
[1749176615151,3.8756,2410.1,2409.4,5.353]
[1749176615356,4.70513,2410.1,2409.9,0.82957]
[1749176615750,3.8756,2410.1,2409.3,25.7794]
[1749176615958,3.2078,2409.7,2409.3,5.9704]
[1749176616157,4.03747,2409.7,2409.5,0.82971]
[1749176616349,3.2078,2409.7,2409.6,0.82968]
[1749176616549,4.6099,2410.0,2409.6,5.288]
[1749176616749,4.6099,2410.0,2409.8,0.82961]
[1749176616948,4.6099,2410.0,2409.9,0.82957]
[1749176617150,3.2078,2410.0,2409.9,0.82957]
[1749176618256,3.2078,2410.0,2409.9,2.21097]
[1749176619249,3.2078,2410.0,2409.8,1.49289]
[1749176619448,4.03735,2410.0,2409.8,0.6633]
[1749176619658,3.2078,2410.0,2409.8,1.49289]
[1749176619852,4.03735,2410.0,2409.8,1.49289]
[1749176620054,3.2078,2410.0,2409.9,0.82957]
[1749176620246,0.82957,2409.9,2409.8,0.6633]
[1749176620447,0.82957,2409.9,2409.8,5.288]
[1749176622663,2.13807,2409.9,2409.8,5.288]
[1749176623459,2.82527,2409.9,2409.8,5.288]
[1749176623653,0.82968,2409.6,2409.5,25.098]
[1749176623860,0.82968,2409.6,2409.5,30.386]
[1749176624059,1.9957,2409.9,2409.5,30.386]
[1749176624060,0.82967,2409.7,2409.5,31.21571]
[1749176624463,0.82968,2409.6,2409.5,25.098]
[1749176624660,0.6872,2409.9,2409.5,30.386]
[1749176624867,1.2653,2409.8,2409.5,30.386]
[1749176625370,0.82968,2409.6,2409.5,30.386]
[1749176625966,0.82975,2409.4,2409.2,0.8298]
[1749176626166,0.82975,2409.4,2409.3,5.288]
[1749176628073,0.82982,2409.2,2409.0,1.3334]
[1749176628273,0.82982,2409.2,2409.1,5.288]
[1749176628473,1.3227,2409.5,2409.1,6.11784]
[1749176628474,0.8298,2409.3,2409.1,6.11784]
[1749176628774,0.82981,2409.3,2409.1,6.11784]
[1749176629676,0.82982,2409.2,2409.1,6.11784]
[1749176629878,0.82982,2409.2,2409.1,5.288]
[1749176630176,0.8298,2409.3,2409.1,6.11784]
[1749176631073,0.82982,2409.2,2409.1,5.288]
[1749176631481,0.82985,2409.1,2409.0,1.3334]
[1749176631680,0.82985,2409.1,2409.0,6.6214]
[1749176632369,0.82985,2409.1,2409.0,1.3334]
[1749176632572,3.2078,2409.3,2408.8,25.097]
[1749176632573,0.82992,2408.9,2408.8,25.097]
[1749176632779,4.03772,2408.9,2408.8,30.386]
[1749176637574,4.03772,2408.9,2408.2,5.289]
[1749176637575,0.83016,2408.3,2408.2,5.289]
[1749176637775,0.83629697,2408.5,2408.2,6.11915]
[1749176637971,0.83629697,2408.5,2408.3,0.83013]
[1749176638176,0.83629697,2408.5,2408.3,0.83012]
[1749176638575,5.00621697,2408.5,2407.8,25.102]
[1749176638774,5.00621697,2408.5,2407.0,2.07638]
[1749176638775,3.2078,2408.2,2407.7,3.2078]
[1749176638979,3.2078,2408.2,2407.8,5.9252]
[1749176639183,0.83026,2407.9,2407.8,5.9252]
[1749176639481,0.83023,2408.0,2407.8,5.9252]
[1749176639673,3.2078,2408.2,2407.8,5.9252]
[1749176639880,3.2078,2408.2,2407.8,0.6352]
[1749176640074,3.21401697,2408.5,2408.0,3.2078]
[1749176640282,0.00621697,2408.5,2408.1,5.29]
[1749176640481,0.83628697,2408.5,2408.2,1.48475]
[1749176640686,0.8301,2408.4,2408.2,0.6546]
[1749176641285,0.83013,2408.3,2408.2,0.6546]
[1749176641489,0.00621697,2408.5,2408.2,0.6546]
[1749176641788,0.83013,2408.3,2408.2,0.6546]
[1749176642083,0.83013,2408.3,2408.2,5.29]
[1749176642483,3.21401697,2408.5,2408.2,5.29]
[1749176642780,3.21401697,2408.5,2408.2,5.278]
[1749176642982,0.83013,2408.3,2408.2,5.278]
[1749176643180,1.3379,2408.4,2407.9,5.2363]
[1749176643384,1.3379,2408.4,2406.8,2.4928827]
[1749176643385,4.03799,2408.1,2408.0,5.278]
[1749176643685,0.83026,2407.9,2407.8,5.278]
[1749176643888,0.6898,2408.0,2407.6,0.6942]
[1749176644080,0.83026,2407.9,2407.8,5.278]
[1749176644284,0.83026,2407.9,2407.3,3.2078]
[1749176644285,2.0277,2408.0,2407.0,0.83056]
[1749176644478,2.0277,2408.0,2407.1,5.278]
[1749176644479,3.2078,2407.7,2407.1,5.278]
[1749176644687,0.83047,2407.3,2407.2,5.278]
[1749176645082,3.2078,2407.4,2407.2,5.278]
[1749176645286,3.2078,2407.4,2407.1,0.83052]
[1749176645479,4.03824,2407.4,2407.2,0.6942]
[1749176645684,3.2078,2407.4,2407.2,0.6942]
[1749176646091,0.83047,2407.3,2407.2,0.6942]
[1749176646287,0.83049,2407.3,2407.0,0.83056]
[1749176646484,0.83048,2407.3,2407.0,0.83056]
[1749176646684,4.03826,2407.4,2407.0,2.15915]
[1749176646992,3.2078,2407.4,2407.2,0.83049]
[1749176647192,3.2078,2407.4,2407.3,5.9156]
[1749176647393,3.2078,2407.4,2407.3,7.43247]
[1749176647583,1.9897,2407.9,2407.4,0.83041]
[1749176647584,0.83034,2407.7,2407.4,0.83041]
[1749176647780,0.8304,2407.6,2407.3,6.602]
[1749176648092,3.2078,2407.7,2407.3,6.602]
[1749176648390,0.83044,2407.4,2407.3,1.323]
[1749176648591,0.83044,2407.4,2407.3,5.9654]
[1749176648788,4.03824,2407.4,2407.3,5.279]
[1749176650394,3.2078,2407.4,2407.0,5.9654]
[1749176650591,0.83054,2407.1,2407.0,5.9654]
[1749176650789,0.83054,2407.1,2406.4,0.83075]
[1749176650790,3.2078,2407.1,2406.4,0.83075]
[1749176650988,3.2078,2407.1,2406.3,3.2078]
[1749176650989,0.83089,2406.1,2405.6,3.2078]
[1749176651291,3.2078,2405.7,2404.4,3.0]
[1749176651591,3.2078,2405.2,2404.7,3.2078]
[1749176651783,0.00623001,2405.3,2405.2,0.8312]
[1749176651984,1e-08,2405.3,2405.2,11.6071]
[1749176652190,3.2078,2406.2,2406.1,0.83088]
[1749176652395,3.2078,2406.5,2406.1,30.633]
[1749176652590,3.2078,2406.5,2406.2,2.0511]
[1749176652793,3.2078,2406.5,2406.3,1.3783]
[1749176652997,3.2078,2407.1,2406.4,3.2078]
[1749176653183,3.2078,2407.1,2406.5,7.72605]
[1749176653184,0.00623001,2406.6,2406.5,7.72605]
[1749176653388,1e-08,2406.6,2406.5,7.72605]
[1749176653587,1e-08,2406.6,2406.5,12.72605]
[1749176653798,3.2078,2407.6,2407.2,0.83048]
[1749176653990,1.9542,2408.1,2407.3,35.1528]
[1749176653991,3.2078,2407.9,2407.3,35.1528]
[1749176654190,3.2078,2407.9,2407.4,30.637]
[1749176654191,4.03809,2407.9,2407.4,30.637]
[1749176654391,3.2078,2407.6,2407.4,30.637]
[1749176655294,3.2078,2407.6,2407.4,31.945]
[1749176656198,3.2078,2407.6,2407.4,32.6221]
[1749176656701,0.00623001,2407.7,2407.4,32.6221]
[1749176657195,3.2078,2408.5,2407.6,3.2078]
[1749176657406,3.2078,2408.5,2408.1,4.03798]
[1749176657598,0.8301,2408.4,2408.2,6.7987]
[1749176657791,0.8301,2408.4,2408.3,30.637]
[1749176657995,3.2078,2408.5,2408.3,30.637]
[1749176658597,0.83009,2408.4,2408.3,30.637]
[1749176658897,2.11549,2408.4,2408.3,30.637]
[1749176659300,3.2078,2408.5,2408.3,30.637]
[1749176660002,0.83009,2408.4,2408.3,30.637]
[1749176660202,3.2078,2408.5,2408.3,30.637]
[1749176660398,4.03786,2408.5,2408.3,30.637]
[1749176660597,3.2078,2408.5,2408.3,30.637]
[1749176660799,4.03787,2408.5,2408.3,30.637]
[1749176661709,3.2078,2408.5,2408.3,30.637]
[1749176662405,3.2078,2408.5,2408.3,31.46711]
[1749176662605,3.2078,2408.5,2408.4,2.14349]
[1749176662797,0.00623001,2408.6,2408.5,0.83006]
[1749176663400,0.00623001,2408.6,2408.5,9.03786]
[1749176663596,1.3239,2409.5,2409.0,0.82986]
[1749176663597,0.82977,2409.4,2409.0,0.82986]
[1749176663801,3.2078,2409.5,2408.5,8.2078]
[1749176663802,4.03753,2409.5,2409.1,7.70124]
[1749176663997,3.2078,2409.5,2409.2,30.633]
[1749176664406,3.2078,2409.5,2408.2,2.07541]
[1749176664407,8.2078,2409.5,2407.9,3.2078]
[1749176664601,0.82982,2409.2,2409.1,1e-08]
[1749176664903,4.03762,2409.2,2409.1,1e-08]
[1749176665093,9.03762,2409.2,2409.1,1e-08]
[1749176665505,11.05722,2409.2,2409.1,1e-08]
[1749176667605,0.82985,2409.1,2409.0,4.41542001]
[1749176667909,0.83016,2408.2,2408.1,25.116]
[1749176668104,3.2078,2408.2,2407.9,0.83023]
[1749176668404,4.03797,2408.2,2407.9,0.83025]
[1749176668599,3.2078,2408.2,2407.8,0.00623001]
[1749176668805,4.03806,2407.9,2407.8,0.00623001]
[1749176668993,4.03806,2407.9,2407.8,5.52223001]
[1749176669400,3.2078,2407.9,2407.8,5.52223001]
[1749176669596,4.03806,2407.9,2407.8,5.52223001]
[1749176670701,3.2078,2408.2,2407.8,5.52223001]
[1749176671010,0.83026,2407.9,2407.8,0.00623001]
[1749176671311,4.03806,2407.9,2407.8,5.52223001]
[1749176671612,4.03806,2407.9,2407.8,0.00623001]
[1749176671806,4.03806,2407.9,2407.8,5.52223001]
[1749176672204,3.2078,2407.9,2407.8,5.52223001]
[1749176672408,3.2078,2407.9,2407.8,6.35253001]
[1749176672619,4.03806,2407.9,2407.8,5.52223001]
[1749176672906,3.2078,2407.9,2407.8,5.52223001]
[1749176673115,3.2078,2407.9,2407.8,6.35253001]
[1749176673313,3.2078,2407.9,2407.8,5.52223001]
[1749176673503,4.03806,2407.9,2407.8,5.52223001]
[1749176673702,3.2078,2407.9,2407.8,5.52223001]
[1749176673905,4.03798,2408.2,2407.9,0.83025]
[1749176674107,3.2078,2408.2,2407.8,0.00623001]
[1749176674307,0.83023,2408.0,2407.9,5.516]
[1749176674804,3.2078,2408.2,2407.9,5.516]
[1749176675011,0.83021,2408.1,2407.9,5.516]
[1749176675603,0.83023,2408.0,2407.9,5.516]
[1749176676012,0.83026,2407.9,2407.8,0.00623001]
[1749176676204,3.2078,2407.9,2407.8,5.52223001]
[1749176676406,3.2078,2407.9,2407.8,6.35253001]
[1749176677206,3.2078,2407.9,2407.8,11.35253001]
[1749176677403,0.00623001,2408.3,2407.8,10.52223001]
[1749176677404,3.21403001,2408.3,2407.8,10.52223001]
[1749176677602,3.21403001,2408.3,2408.2,0.83016]
[1749176677809,3.21403001,2408.3,2407.9,2.91125]
[1749176678012,0.83021,2408.1,2408.0,5.516]